[Event "Titled Tuesday Blitz April 11 Early 2023"]
[White "MANOJ_MISHRA123"]
[Black "Gatterer, Florian"]
[BlackFideId "811688"]
[WhiteElo "2100"]
[BlackElo "2221"]
[Result "1/2-1/2"]
[Round "03"]
[TimeControl "180+2"]
[Date "2023.04.11"]
[WhiteClock "0:00:06"]
[BlackClock "0:00:23"]

1. d4 {[%clk 0:03:00]}  d5 {[%clk 0:02:59]} 2. Bf4 {[%clk 0:02:56]}  c5 {[%clk 0:02:59]} 3. c3 {[%clk 0:02:55]}  cxd4 {[%clk 0:02:57]} 4. cxd4 {[%clk 0:02:54]}  Nc6 {[%clk 0:02:56]} 5. e3 {[%clk 0:02:54]}  Nf6 {[%clk 0:02:55]} 6. Nf3 {[%clk 0:02:53]}  a6 {[%clk 0:02:48]} 7. Bd3 {[%clk 0:02:50]}  Bg4 {[%clk 0:02:47]} 8. h3 {[%clk 0:02:49]}  Bxf3 {[%clk 0:02:46]} 9. Qxf3 {[%clk 0:02:43]}  Nb4 {[%clk 0:02:44]} 10. Qe2 {[%clk 0:02:11]}  Nxd3+ {[%clk 0:02:43]} 11. Qxd3 {[%clk 0:02:10]}  e6 {[%clk 0:02:43]} 12. Nc3 {[%clk 0:02:09]}  Bd6 {[%clk 0:02:42]} 13. O-O {[%clk 0:02:07]}  Bxf4 {[%clk 0:02:38]} 14. exf4 {[%clk 0:02:06]}  g6 {[%clk 0:02:37]} 15. Na4 {[%clk 0:02:03]}  Ne4 {[%clk 0:02:31]} 16. f3 {[%clk 0:01:57]}  Nd6 {[%clk 0:02:31]} 17. Rac1 {[%clk 0:01:52]}  O-O {[%clk 0:02:30]} 18. Nc5 {[%clk 0:01:35]}  Qe7 {[%clk 0:02:10]} 19. Qa3 {[%clk 0:01:32]}  Nf5 {[%clk 0:02:06]} 20. Rfd1 {[%clk 0:01:16]}  b6 {[%clk 0:01:57]} 21. Na4 {[%clk 0:00:53]}  Qxa3 {[%clk 0:01:56]} 22. bxa3 {[%clk 0:00:54]}  Ne3 {[%clk 0:01:52]} 23. Rd3 {[%clk 0:00:51]}  Nc4 {[%clk 0:01:50]} 24. Rb3 {[%clk 0:00:46]}  b5 {[%clk 0:01:49]} 25. Nc5 {[%clk 0:00:45]}  Rfc8 {[%clk 0:01:39]} 26. g4 {[%clk 0:00:39]}  h6 {[%clk 0:01:37]} 27. Kf2 {[%clk 0:00:35]}  Kg7 {[%clk 0:01:34]} 28. Ke2 {[%clk 0:00:35]}  Rc7 {[%clk 0:01:23]} 29. a4 {[%clk 0:00:30]}  bxa4 {[%clk 0:01:14]} 30. Nxa4 {[%clk 0:00:27]}  Rac8 {[%clk 0:01:12]} 31. Nc5 {[%clk 0:00:21]}  Rc6 {[%clk 0:01:07]} 32. a4 {[%clk 0:00:19]}  R8c7 {[%clk 0:01:03]} 33. Rb8 {[%clk 0:00:18]}  Rc8 {[%clk 0:01:01]} 34. Rb7 {[%clk 0:00:18]}  R8c7 {[%clk 0:01:01]} 35. Rxc7 {[%clk 0:00:16]}  Rxc7 {[%clk 0:01:01]} 36. Nxa6 {[%clk 0:00:16]}  Rb7 {[%clk 0:01:00]} 37. Nc5 {[%clk 0:00:17]}  Rb2+ {[%clk 0:01:00]} 38. Kd3 {[%clk 0:00:16]}  Ra2 {[%clk 0:00:53]} 39. Rb1 {[%clk 0:00:15]}  Ra3+ {[%clk 0:00:41]} 40. Ke2 {[%clk 0:00:13]}  Ra2+ {[%clk 0:00:41]} 41. Kd3 {[%clk 0:00:13]}  Ra3+ {[%clk 0:00:41]} 42. Rb3 {[%clk 0:00:13]}  Ra2 {[%clk 0:00:41]} 43. Rb7 {[%clk 0:00:12]}  Kg8 {[%clk 0:00:38]} 44. Rb8+ {[%clk 0:00:11]}  Kg7 {[%clk 0:00:38]} 45. Rb7 {[%clk 0:00:12]}  Kg8 {[%clk 0:00:38]} 46. Nd7 {[%clk 0:00:11]}  Rxa4 {[%clk 0:00:33]} 47. g5 {[%clk 0:00:11]}  Ra3+ {[%clk 0:00:28]} 48. Ke2 {[%clk 0:00:09]}  hxg5 {[%clk 0:00:27]} 49. fxg5 {[%clk 0:00:09]}  Ra8 {[%clk 0:00:27]} 50. Nf6+ {[%clk 0:00:09]}  Kg7 {[%clk 0:00:27]} 51. h4 {[%clk 0:00:07]}  Ra2+ {[%clk 0:00:26]} 52. Kd1 {[%clk 0:00:07]}  Ra8 {[%clk 0:00:27]} 53. Kc2 {[%clk 0:00:07]}  Rh8 {[%clk 0:00:26]} 54. Kb3 {[%clk 0:00:06]}  Rxh4 {[%clk 0:00:26]} 55. Kb4 {[%clk 0:00:06]}  Rh2 {[%clk 0:00:26]} 56. Rb8 {[%clk 0:00:06]}  Rh8 {[%clk 0:00:25]} 57. Rb7 {[%clk 0:00:05]}  Rh2 {[%clk 0:00:24]} 58. Kc5 {[%clk 0:00:05]}  Rh8 {[%clk 0:00:24]} 59. Ra7 {[%clk 0:00:05]}  Rc8+ {[%clk 0:00:23]} 60. Kb4 {[%clk 0:00:05]}  Rb8+ {[%clk 0:00:22]} 61. Kc5 {[%clk 0:00:05]}  Rc8+ {[%clk 0:00:22]} 62. Kb4 {[%clk 0:00:06]}  Rb8+ {[%clk 0:00:23]} 63. Kc5 {[%clk 0:00:06]}  Rc8+ {[%clk 0:00:23]} 1/2-1/2


[Site "https://www.chess.com"]

[Event "Titled Tuesday Blitz April 11 Early 2023"]
[White "Garrido, Denis"]
[Black "Vaibhav, Suri"]
[WhiteFideId "601217"]
[BlackFideId "5045185"]
[WhiteElo "2321"]
[BlackElo "2510"]
[Result "1/2-1/2"]
[Round "03"]
[TimeControl "180+2"]
[Date "2023.04.11"]
[WhiteClock "0:00:12"]
[BlackClock "0:01:03"]

1. e4 {[%clk 0:02:58]}  Nf6 {[%clk 0:02:57]} 2. e5 {[%clk 0:02:58]}  Nd5 {[%clk 0:02:57]} 3. d4 {[%clk 0:02:59]}  d6 {[%clk 0:02:58]} 4. Nf3 {[%clk 0:02:59]}  Bg4 {[%clk 0:02:56]} 5. Be2 {[%clk 0:02:55]}  e6 {[%clk 0:02:55]} 6. O-O {[%clk 0:02:53]}  Nd7 {[%clk 0:02:53]} 7. exd6 {[%clk 0:02:50]}  Bxd6 {[%clk 0:02:51]} 8. c4 {[%clk 0:02:50]}  N5f6 {[%clk 0:02:51]} 9. Nc3 {[%clk 0:02:45]}  O-O {[%clk 0:02:50]} 10. h3 {[%clk 0:02:45]}  Bh5 {[%clk 0:02:50]} 11. Qb3 {[%clk 0:02:38]}  c5 {[%clk 0:02:38]} 12. Nb5 {[%clk 0:02:37]}  Bb8 {[%clk 0:02:31]} 13. dxc5 {[%clk 0:02:33]}  Nxc5 {[%clk 0:02:31]} 14. Qa3 {[%clk 0:02:33]}  Qe7 {[%clk 0:02:28]} 15. Be3 {[%clk 0:02:30]}  b6 {[%clk 0:02:28]} 16. Rad1 {[%clk 0:02:23]}  a6 {[%clk 0:02:25]} 17. Nbd4 {[%clk 0:02:18]}  Rc8 {[%clk 0:02:16]} 18. Rfe1 {[%clk 0:02:10]}  Qc7 {[%clk 0:02:15]} 19. g3 {[%clk 0:02:06]}  Qb7 {[%clk 0:02:08]} 20. Qc3 {[%clk 0:01:50]}  Nfe4 {[%clk 0:02:04]} 21. Qc1 {[%clk 0:01:50]}  Bd6 {[%clk 0:02:00]} 22. Nd2 {[%clk 0:01:36]}  Bxe2 {[%clk 0:01:45]} 23. Rxe2 {[%clk 0:01:37]}  Nf6 {[%clk 0:01:36]} 24. Qc2 {[%clk 0:01:24]}  Rd8 {[%clk 0:01:33]} 25. Ree1 {[%clk 0:01:22]}  Rac8 {[%clk 0:01:33]} 26. N4b3 {[%clk 0:01:17]}  Ncd7 {[%clk 0:01:29]} 27. Qd3 {[%clk 0:01:06]}  Ne5 {[%clk 0:01:27]} 28. Qf1 {[%clk 0:01:05]}  Bb4 {[%clk 0:01:23]} 29. Qg2 {[%clk 0:01:02]}  Qxg2+ {[%clk 0:01:20]} 30. Kxg2 {[%clk 0:01:03]}  Nxc4 {[%clk 0:01:18]} 31. Nxc4 {[%clk 0:01:03]}  Bxe1 {[%clk 0:01:19]} 32. Rxe1 {[%clk 0:00:58]}  Rxc4 {[%clk 0:01:18]} 33. Bxb6 {[%clk 0:00:58]}  Nd5 {[%clk 0:01:18]} 34. Bxd8 {[%clk 0:00:58]}  Rc2 {[%clk 0:01:18]} 35. Rb1 {[%clk 0:00:45]}  h6 {[%clk 0:01:17]} 36. Ba5 {[%clk 0:00:39]}  e5 {[%clk 0:01:17]} 37. Be1 {[%clk 0:00:38]}  f6 {[%clk 0:01:17]} 38. Kf1 {[%clk 0:00:38]}  Kf7 {[%clk 0:01:18]} 39. Nd2 {[%clk 0:00:38]}  Ke6 {[%clk 0:01:17]} 40. a3 {[%clk 0:00:38]}  g5 {[%clk 0:01:17]} 41. Ne4 {[%clk 0:00:38]}  f5 {[%clk 0:01:16]} 42. Nc3 {[%clk 0:00:38]}  Nb6 {[%clk 0:01:16]} 43. b3 {[%clk 0:00:35]}  Nd7 {[%clk 0:01:15]} 44. Na4 {[%clk 0:00:35]}  e4 {[%clk 0:01:14]} 45. Rd1 {[%clk 0:00:34]}  Ne5 {[%clk 0:01:15]} 46. b4 {[%clk 0:00:33]}  Nf3 {[%clk 0:01:10]} 47. Nc5+ {[%clk 0:00:32]}  Ke5 {[%clk 0:01:11]} 48. Nxa6 {[%clk 0:00:30]}  f4 {[%clk 0:01:11]} 49. gxf4+ {[%clk 0:00:30]}  gxf4 {[%clk 0:01:12]} 50. Nc5 {[%clk 0:00:29]}  e3 {[%clk 0:01:12]} 51. Nd3+ {[%clk 0:00:26]}  Ke4 {[%clk 0:01:12]} 52. fxe3 {[%clk 0:00:20]}  fxe3 {[%clk 0:01:11]} 53. Nc5+ {[%clk 0:00:20]}  Kf4 {[%clk 0:01:10]} 54. Nd3+ {[%clk 0:00:20]}  Ke4 {[%clk 0:01:10]} 55. Nc5+ {[%clk 0:00:20]}  Kf4 {[%clk 0:01:07]} 56. Nd3+ {[%clk 0:00:12]}  Kf5 {[%clk 0:01:06]} 57. Nc1 {[%clk 0:00:13]}  Nh2+ {[%clk 0:01:05]} 58. Kg1 {[%clk 0:00:13]}  Nf3+ {[%clk 0:01:06]} 59. Kf1 {[%clk 0:00:12]}  Nh2+ {[%clk 0:01:02]} 60. Kg1 {[%clk 0:00:12]}  Nf3+ {[%clk 0:01:03]} 61. Kf1 {[%clk 0:00:12]} 1/2-1/2


[Site "https://www.chess.com"]

[Event "Titled Tuesday Blitz April 11 Early 2023"]
[White "Smith, Garrett L"]
[Black "Pakleza, Zbigniew"]
[WhiteFideId "2024829"]
[BlackFideId "1119290"]
[WhiteElo "2315"]
[BlackElo "2410"]
[Result "0-1"]
[Round "03"]
[TimeControl "180+2"]
[Date "2023.04.11"]
[WhiteClock "0:00:06"]
[BlackClock "0:00:22"]

1. e4 {[%clk 0:03:00]}  d6 {[%clk 0:02:59]} 2. d4 {[%clk 0:03:00]}  Nf6 {[%clk 0:03:00]} 3. Nc3 {[%clk 0:03:00]}  c6 {[%clk 0:03:01]} 4. f3 {[%clk 0:02:55]}  Qb6 {[%clk 0:03:01]} 5. a4 {[%clk 0:02:52]}  a5 {[%clk 0:02:59]} 6. Nge2 {[%clk 0:02:44]}  e5 {[%clk 0:02:59]} 7. Be3 {[%clk 0:02:33]}  Nbd7 {[%clk 0:02:59]} 8. Qd2 {[%clk 0:02:31]}  Qc7 {[%clk 0:02:59]} 9. g4 {[%clk 0:02:30]}  h5 {[%clk 0:02:58]} 10. g5 {[%clk 0:02:29]}  Ng8 {[%clk 0:02:58]} 11. h4 {[%clk 0:02:17]}  Ne7 {[%clk 0:02:58]} 12. Bh3 {[%clk 0:02:14]}  Nb6 {[%clk 0:02:54]} 13. b3 {[%clk 0:02:13]}  Bxh3 {[%clk 0:02:52]} 14. Rxh3 {[%clk 0:02:13]}  g6 {[%clk 0:02:49]} 15. f4 {[%clk 0:02:10]}  Bg7 {[%clk 0:02:45]} 16. O-O-O {[%clk 0:02:07]}  Nd7 {[%clk 0:02:35]} 17. Rf3 {[%clk 0:02:06]}  O-O-O {[%clk 0:02:09]} 18. fxe5 {[%clk 0:01:56]}  Rhf8 {[%clk 0:01:57]} 19. exd6 {[%clk 0:01:48]}  Qxd6 {[%clk 0:01:58]} 20. Bf4 {[%clk 0:01:40]}  Qa3+ {[%clk 0:01:50]} 21. Kb1 {[%clk 0:01:40]}  Nc5 {[%clk 0:01:45]} 22. Qc1 {[%clk 0:01:14]}  Qxc1+ {[%clk 0:01:44]} 23. Kxc1 {[%clk 0:01:13]}  Ne6 {[%clk 0:01:36]} 24. Be3 {[%clk 0:01:12]}  f5 {[%clk 0:01:32]} 25. gxf6 {[%clk 0:01:09]}  Rxf6 {[%clk 0:01:32]} 26. Rg3 {[%clk 0:00:53]}  Rf7 {[%clk 0:01:09]} 27. d5 {[%clk 0:00:50]}  Nf8 {[%clk 0:00:58]} 28. Bb6 {[%clk 0:00:48]}  Re8 {[%clk 0:00:59]} 29. d6 {[%clk 0:00:43]}  Ng8 {[%clk 0:00:58]} 30. Bxa5 {[%clk 0:00:37]}  Nf6 {[%clk 0:00:58]} 31. Rf3 {[%clk 0:00:31]}  Rd7 {[%clk 0:00:48]} 32. Bb4 {[%clk 0:00:28]}  Ne6 {[%clk 0:00:46]} 33. Rdf1 {[%clk 0:00:26]}  Ng4 {[%clk 0:00:40]} 34. Rf7 {[%clk 0:00:19]}  Nd8 {[%clk 0:00:31]} 35. Rxd7 {[%clk 0:00:19]}  Kxd7 {[%clk 0:00:32]} 36. Kd2 {[%clk 0:00:17]}  Bh6+ {[%clk 0:00:30]} 37. Ke1 {[%clk 0:00:16]}  Ne3 {[%clk 0:00:29]} 38. Bc5 {[%clk 0:00:04]}  Nxf1 {[%clk 0:00:28]} 39. Kxf1 {[%clk 0:00:05]}  Ne6 {[%clk 0:00:27]} 40. b4 {[%clk 0:00:06]}  Nxc5 {[%clk 0:00:22]} 41. bxc5 {[%clk 0:00:07]}  Be3 {[%clk 0:00:22]} 42. Kg2 {[%clk 0:00:06]} 0-1


[Site "https://www.chess.com"]

[Event "Titled Tuesday Blitz April 11 Early 2023"]
[White "Eggleston, Thomas A"]
[Black "Parkhov, Yair"]
[WhiteFideId "412139"]
[BlackFideId "2813408"]
[WhiteElo "2155"]
[BlackElo "2421"]
[Result "0-1"]
[Round "03"]
[TimeControl "180+2"]
[Date "2023.04.11"]
[WhiteClock "0:00:08"]
[BlackClock "0:00:22"]

1. e4 {[%clk 0:03:00]}  e5 {[%clk 0:02:58]} 2. f4 {[%clk 0:02:59]}  d5 {[%clk 0:02:45]} 3. exd5 {[%clk 0:02:59]}  exf4 {[%clk 0:02:36]} 4. Nf3 {[%clk 0:02:59]}  Nf6 {[%clk 0:02:36]} 5. c4 {[%clk 0:02:57]}  c6 {[%clk 0:02:30]} 6. dxc6 {[%clk 0:02:46]}  Nxc6 {[%clk 0:02:31]} 7. d4 {[%clk 0:02:46]}  Bg4 {[%clk 0:02:29]} 8. Be2 {[%clk 0:02:45]}  Bb4+ {[%clk 0:02:24]} 9. Nc3 {[%clk 0:02:44]}  Bxf3 {[%clk 0:02:20]} 10. Bxf3 {[%clk 0:02:44]}  Nxd4 {[%clk 0:02:18]} 11. O-O {[%clk 0:02:36]}  O-O {[%clk 0:02:13]} 12. Bxf4 {[%clk 0:02:25]}  Bxc3 {[%clk 0:02:08]} 13. bxc3 {[%clk 0:02:25]}  Nxf3+ {[%clk 0:02:08]} 14. Qxf3 {[%clk 0:02:25]}  Qb6+ {[%clk 0:02:04]} 15. Be3 {[%clk 0:02:19]}  Qc6 {[%clk 0:02:05]} 16. Qg3 {[%clk 0:01:59]}  Ne4 {[%clk 0:02:04]} 17. Qg4 {[%clk 0:01:51]}  Qg6 {[%clk 0:01:48]} 18. Qxg6 {[%clk 0:01:49]}  hxg6 {[%clk 0:01:49]} 19. Bd4 {[%clk 0:01:46]}  Nd2 {[%clk 0:01:45]} 20. Rfe1 {[%clk 0:01:43]}  Nxc4 {[%clk 0:01:44]} 21. Re7 {[%clk 0:01:43]}  b6 {[%clk 0:01:43]} 22. Rae1 {[%clk 0:01:38]}  Nd6 {[%clk 0:01:41]} 23. Rd7 {[%clk 0:01:31]}  Rfd8 {[%clk 0:01:40]} 24. Ree7 {[%clk 0:01:27]}  Rxd7 {[%clk 0:01:40]} 25. Rxd7 {[%clk 0:01:27]}  Nb5 {[%clk 0:01:28]} 26. Kf2 {[%clk 0:01:23]}  Nxd4 {[%clk 0:01:21]} 27. cxd4 {[%clk 0:01:22]}  b5 {[%clk 0:01:18]} 28. Rb7 {[%clk 0:01:19]}  a6 {[%clk 0:01:16]} 29. Rb6 {[%clk 0:01:15]}  Kf8 {[%clk 0:01:14]} 30. d5 {[%clk 0:01:15]}  Ke7 {[%clk 0:01:14]} 31. Ke3 {[%clk 0:01:12]}  Kd7 {[%clk 0:00:58]} 32. Kd4 {[%clk 0:01:09]}  Kc7 {[%clk 0:00:57]} 33. Rc6+ {[%clk 0:01:08]}  Kb7 {[%clk 0:00:55]} 34. Rd6 {[%clk 0:01:05]}  Rc8 {[%clk 0:00:54]} 35. Rd7+ {[%clk 0:01:01]}  Rc7 {[%clk 0:00:54]} 36. Rd8 {[%clk 0:01:00]}  Rc2 {[%clk 0:00:38]} 37. Rd7+ {[%clk 0:00:57]}  Kb6 {[%clk 0:00:38]} 38. Rxf7 {[%clk 0:00:56]}  Rxa2 {[%clk 0:00:38]} 39. Rxg7 {[%clk 0:00:56]}  Rd2+ {[%clk 0:00:39]} 40. Ke5 {[%clk 0:00:55]}  b4 {[%clk 0:00:38]} 41. Rxg6+ {[%clk 0:00:52]}  Kb5 {[%clk 0:00:36]} 42. Rg3 {[%clk 0:00:50]}  a5 {[%clk 0:00:35]} 43. h4 {[%clk 0:00:50]}  a4 {[%clk 0:00:36]} 44. h5 {[%clk 0:00:50]}  b3 {[%clk 0:00:36]} 45. Rg8 {[%clk 0:00:37]}  a3 {[%clk 0:00:27]} 46. h6 {[%clk 0:00:35]}  a2 {[%clk 0:00:27]} 47. Ra8 {[%clk 0:00:32]}  b2 {[%clk 0:00:20]} 48. Rxa2 {[%clk 0:00:31]}  b1=Q {[%clk 0:00:20]} 49. Rxd2 {[%clk 0:00:31]}  Qe1+ {[%clk 0:00:20]} 50. Kf6 {[%clk 0:00:30]}  Qxd2 {[%clk 0:00:21]} 51. Kg7 {[%clk 0:00:29]}  Qg5+ {[%clk 0:00:21]} 52. Kh7 {[%clk 0:00:29]}  Kc5 {[%clk 0:00:22]} 53. g4 {[%clk 0:00:27]}  Kd6 {[%clk 0:00:21]} 54. Kh8 {[%clk 0:00:09]}  Ke7 {[%clk 0:00:22]} 55. h7 {[%clk 0:00:09]}  Kf7 {[%clk 0:00:22]} 56. d6 {[%clk 0:00:08]}  Qe5# {[%clk 0:00:22]} 0-1


[Site "https://www.chess.com"]

[Event "Titled Tuesday Blitz April 11 Early 2023"]
[White "Mikayel99"]
[Black "Hirneise, Jens"]
[BlackFideId "24614734"]
[WhiteElo "2310"]
[BlackElo "2345"]
[Result "1-0"]
[Round "03"]
[TimeControl "180+2"]
[Date "2023.04.11"]
[WhiteClock "0:00:36"]
[BlackClock "0:01:08"]

1. e4 {[%clk 0:03:00]}  c5 {[%clk 0:02:57]} 2. Nf3 {[%clk 0:02:57]}  g6 {[%clk 0:02:56]} 3. c3 {[%clk 0:02:54]}  Bg7 {[%clk 0:02:51]} 4. d4 {[%clk 0:02:52]}  cxd4 {[%clk 0:02:51]} 5. cxd4 {[%clk 0:02:53]}  e6 {[%clk 0:02:50]} 6. Nc3 {[%clk 0:02:53]}  Ne7 {[%clk 0:02:49]} 7. Be2 {[%clk 0:02:47]}  O-O {[%clk 0:02:49]} 8. O-O {[%clk 0:02:47]}  d6 {[%clk 0:02:48]} 9. Be3 {[%clk 0:02:46]}  Nbc6 {[%clk 0:02:46]} 10. Qd2 {[%clk 0:02:43]}  d5 {[%clk 0:02:46]} 11. e5 {[%clk 0:02:43]}  Nf5 {[%clk 0:02:45]} 12. a3 {[%clk 0:02:39]}  Nxe3 {[%clk 0:02:44]} 13. Qxe3 {[%clk 0:02:40]}  Bd7 {[%clk 0:02:40]} 14. b4 {[%clk 0:02:38]}  a5 {[%clk 0:02:39]} 15. b5 {[%clk 0:02:38]}  Na7 {[%clk 0:02:39]} 16. Rab1 {[%clk 0:02:35]}  Nc8 {[%clk 0:02:37]} 17. Na4 {[%clk 0:02:33]}  Nb6 {[%clk 0:02:22]} 18. Nc5 {[%clk 0:02:27]}  Bc8 {[%clk 0:02:22]} 19. h4 {[%clk 0:02:16]}  Nd7 {[%clk 0:02:13]} 20. Rfc1 {[%clk 0:01:54]}  Nxc5 {[%clk 0:02:05]} 21. Rxc5 {[%clk 0:01:50]}  Re8 {[%clk 0:02:02]} 22. h5 {[%clk 0:01:40]}  Bf8 {[%clk 0:02:00]} 23. h6 {[%clk 0:01:37]}  b6 {[%clk 0:01:52]} 24. Rc2 {[%clk 0:01:31]}  a4 {[%clk 0:01:51]} 25. Rbc1 {[%clk 0:01:26]}  Bd7 {[%clk 0:01:51]} 26. g4 {[%clk 0:01:22]}  g5 {[%clk 0:01:46]} 27. Kg2 {[%clk 0:01:10]}  Ra5 {[%clk 0:01:40]} 28. Bd3 {[%clk 0:01:05]}  Bxb5 {[%clk 0:01:37]} 29. Bxb5 {[%clk 0:01:04]}  Rxb5 {[%clk 0:01:37]} 30. Rc8 {[%clk 0:01:03]}  Qxc8 {[%clk 0:01:32]} 31. Rxc8 {[%clk 0:01:00]}  Rxc8 {[%clk 0:01:32]} 32. Qxg5+ {[%clk 0:01:01]}  Kh8 {[%clk 0:01:32]} 33. Qf6+ {[%clk 0:01:00]}  Kg8 {[%clk 0:01:31]} 34. Ng5 {[%clk 0:00:45]}  Rc7 {[%clk 0:01:29]} 35. Qd8 {[%clk 0:00:45]}  Ra7 {[%clk 0:01:19]} 36. Nxh7 {[%clk 0:00:44]}  Kxh7 {[%clk 0:01:16]} 37. Qxf8 {[%clk 0:00:43]}  f5 {[%clk 0:01:15]} 38. exf6 {[%clk 0:00:42]}  Rba5 {[%clk 0:01:12]} 39. g5 {[%clk 0:00:40]}  Kg6 {[%clk 0:01:12]} 40. Qg8+ {[%clk 0:00:36]}  Kf5 {[%clk 0:01:09]} 41. f7 {[%clk 0:00:36]}  Ra8 {[%clk 0:01:09]} 42. f8=Q+ {[%clk 0:00:35]}  Rxf8 {[%clk 0:01:08]} 43. Qxf8+ {[%clk 0:00:36]}  Ke4 {[%clk 0:01:08]} 44. h7 {[%clk 0:00:36]} 1-0


[Site "https://www.chess.com"]

[Event "Titled Tuesday Blitz April 11 Early 2023"]
[White "Prudnykova, Olga"]
[Black "KRUMMEL2008"]
[WhiteFideId "14121093"]
[WhiteElo "2113"]
[BlackElo "2593"]
[Result "0-1"]
[Round "03"]
[TimeControl "180+2"]
[Date "2023.04.11"]
[WhiteClock "0:00:15"]
[BlackClock "0:00:49"]

1. e4 {[%clk 0:02:59]}  c5 {[%clk 0:02:59]} 2. Nf3 {[%clk 0:02:59]}  d6 {[%clk 0:03:00]} 3. Nc3 {[%clk 0:02:59]}  Nf6 {[%clk 0:03:00]} 4. e5 {[%clk 0:02:59]}  dxe5 {[%clk 0:03:01]} 5. Nxe5 {[%clk 0:03:00]}  a6 {[%clk 0:03:01]} 6. g3 {[%clk 0:02:59]}  Qd6 {[%clk 0:03:00]} 7. Nf3 {[%clk 0:02:26]}  Bg4 {[%clk 0:02:59]} 8. Bg2 {[%clk 0:02:24]}  Qe6+ {[%clk 0:02:59]} 9. Ne2 {[%clk 0:01:54]}  Nc6 {[%clk 0:02:14]} 10. O-O {[%clk 0:01:50]}  Qf5 {[%clk 0:02:01]} 11. Nh4 {[%clk 0:01:32]}  Qd7 {[%clk 0:02:01]} 12. Qe1 {[%clk 0:01:27]}  g5 {[%clk 0:01:48]} 13. Nf3 {[%clk 0:01:25]}  Qf5 {[%clk 0:01:48]} 14. Nxg5 {[%clk 0:00:47]}  Qxg5 {[%clk 0:01:49]} 15. d4 {[%clk 0:00:48]}  Qg7 {[%clk 0:01:47]} 16. d5 {[%clk 0:00:44]}  Nb4 {[%clk 0:01:42]} 17. d6 {[%clk 0:00:41]}  Nxc2 {[%clk 0:01:35]} 18. Qd2 {[%clk 0:00:41]}  Nxa1 {[%clk 0:01:28]} 19. Bxb7 {[%clk 0:00:38]}  Rd8 {[%clk 0:01:15]} 20. Bc6+ {[%clk 0:00:37]}  Bd7 {[%clk 0:01:15]} 21. Bxd7+ {[%clk 0:00:32]}  Rxd7 {[%clk 0:01:16]} 22. Nc3 {[%clk 0:00:25]}  Rxd6 {[%clk 0:01:09]} 23. Qe2 {[%clk 0:00:25]}  e6 {[%clk 0:01:03]} 24. Bf4 {[%clk 0:00:25]}  Rd8 {[%clk 0:01:00]} 25. Rxa1 {[%clk 0:00:20]}  Be7 {[%clk 0:00:59]} 26. Qxa6 {[%clk 0:00:19]}  O-O {[%clk 0:00:59]} 27. Qb7 {[%clk 0:00:18]}  Bd6 {[%clk 0:00:58]} 28. Be3 {[%clk 0:00:19]}  Ng4 {[%clk 0:00:54]} 29. Ne4 {[%clk 0:00:18]}  Nxe3 {[%clk 0:00:53]} 30. fxe3 {[%clk 0:00:19]}  Qe5 {[%clk 0:00:52]} 31. Rf1 {[%clk 0:00:18]}  f5 {[%clk 0:00:51]} 32. Nc3 {[%clk 0:00:15]}  Qxe3+ {[%clk 0:00:51]} 33. Kg2 {[%clk 0:00:15]}  Be5 {[%clk 0:00:50]} 34. Rf3 {[%clk 0:00:15]}  Rd2+ {[%clk 0:00:49]} 0-1


[Site "https://www.chess.com"]

[Event "Titled Tuesday Blitz April 11 Early 2023"]
[White "Krishnan, Varun"]
[Black "Rose, Felix"]
[WhiteFideId "5054508"]
[BlackFideId "5105722"]
[WhiteElo "2520"]
[BlackElo "2039"]
[Result "0-1"]
[Round "03"]
[TimeControl "180+2"]
[Date "2023.04.11"]
[WhiteClock "0:00:03"]
[BlackClock "0:00:38"]

1. Nf3 {[%clk 0:03:00]}  d5 {[%clk 0:02:59]} 2. d4 {[%clk 0:03:00]}  Nf6 {[%clk 0:02:59]} 3. c4 {[%clk 0:02:59]}  e6 {[%clk 0:02:59]} 4. Nc3 {[%clk 0:02:58]}  Be7 {[%clk 0:02:59]} 5. Bf4 {[%clk 0:02:55]}  O-O {[%clk 0:02:59]} 6. e3 {[%clk 0:02:55]}  b6 {[%clk 0:02:59]} 7. Bd3 {[%clk 0:02:48]}  Bb7 {[%clk 0:02:58]} 8. cxd5 {[%clk 0:02:49]}  Nxd5 {[%clk 0:02:58]} 9. Nxd5 {[%clk 0:02:49]}  Bxd5 {[%clk 0:02:49]} 10. O-O {[%clk 0:02:48]}  c5 {[%clk 0:02:47]} 11. a3 {[%clk 0:02:22]}  Bb7 {[%clk 0:02:38]} 12. Ne5 {[%clk 0:02:19]}  Nc6 {[%clk 0:02:33]} 13. Qh5 {[%clk 0:02:06]}  g6 {[%clk 0:02:29]} 14. Nxg6 {[%clk 0:02:02]}  fxg6 {[%clk 0:02:19]} 15. Bxg6 {[%clk 0:02:02]}  hxg6 {[%clk 0:02:20]} 16. Qxg6+ {[%clk 0:02:01]}  Kh8 {[%clk 0:02:20]} 17. Qh6+ {[%clk 0:01:59]}  Kg8 {[%clk 0:02:20]} 18. Qg6+ {[%clk 0:02:00]}  Kh8 {[%clk 0:02:20]} 19. Qh6+ {[%clk 0:02:01]}  Kg8 {[%clk 0:02:20]} 20. Qxe6+ {[%clk 0:02:02]}  Rf7 {[%clk 0:02:14]} 21. d5 {[%clk 0:01:52]}  Na5 {[%clk 0:01:59]} 22. Rad1 {[%clk 0:01:51]}  Qc8 {[%clk 0:01:46]} 23. Qe4 {[%clk 0:01:43]}  Qf5 {[%clk 0:01:35]} 24. f3 {[%clk 0:01:24]}  Rd8 {[%clk 0:01:24]} 25. b4 {[%clk 0:01:18]}  Qxe4 {[%clk 0:01:13]} 26. fxe4 {[%clk 0:01:18]}  cxb4 {[%clk 0:01:13]} 27. d6 {[%clk 0:01:19]}  Bf8 {[%clk 0:01:09]} 28. axb4 {[%clk 0:01:18]}  Nc4 {[%clk 0:01:03]} 29. e5 {[%clk 0:01:13]}  Rg7 {[%clk 0:00:59]} 30. Rf2 {[%clk 0:00:55]}  Rg6 {[%clk 0:00:59]} 31. h4 {[%clk 0:00:41]}  Re6 {[%clk 0:00:57]} 32. Bg5 {[%clk 0:00:28]}  Rd7 {[%clk 0:00:50]} 33. Rdf1 {[%clk 0:00:17]}  Bg7 {[%clk 0:00:46]} 34. h5 {[%clk 0:00:15]}  Nxe5 {[%clk 0:00:44]} 35. h6 {[%clk 0:00:15]}  Bxh6 {[%clk 0:00:44]} 36. Bxh6 {[%clk 0:00:14]}  Rxh6 {[%clk 0:00:45]} 37. Rf8+ {[%clk 0:00:13]}  Kg7 {[%clk 0:00:45]} 38. R8f5 {[%clk 0:00:13]}  Nc4 {[%clk 0:00:43]} 39. R1f4 {[%clk 0:00:10]}  Rg6 {[%clk 0:00:42]} 40. Rh5 {[%clk 0:00:08]}  Rxg2+ {[%clk 0:00:41]} 41. Kf1 {[%clk 0:00:08]}  Nxe3+ {[%clk 0:00:42]} 42. Ke1 {[%clk 0:00:09]}  Nd5 {[%clk 0:00:39]} 43. Rfh4 {[%clk 0:00:08]}  Nf6 {[%clk 0:00:38]} 44. Rf5 {[%clk 0:00:07]}  Rg6 {[%clk 0:00:37]} 45. b5 {[%clk 0:00:06]}  Rxd6 {[%clk 0:00:38]} 46. Re5 {[%clk 0:00:06]}  Kf7 {[%clk 0:00:37]} 47. Rh8 {[%clk 0:00:05]}  Re6 {[%clk 0:00:36]} 48. Rxe6 {[%clk 0:00:05]}  Kxe6 {[%clk 0:00:37]} 49. Rb8 {[%clk 0:00:05]}  Rg7 {[%clk 0:00:37]} 50. Kf2 {[%clk 0:00:04]}  Ne4+ {[%clk 0:00:37]} 51. Ke1 {[%clk 0:00:03]}  Nd6 {[%clk 0:00:38]} 52. Rh8 {[%clk 0:00:02]}  Bd5 {[%clk 0:00:38]} 53. Rh6+ {[%clk 0:00:01]}  Kd7 {[%clk 0:00:39]} 54. Rh5 {[%clk 0:00:02]}  Be6 {[%clk 0:00:39]} 55. Kd2 {[%clk 0:00:02]}  Bg4 {[%clk 0:00:38]} 56. Kc1 {[%clk 0:00:03]}  Bxh5 {[%clk 0:00:38]} 0-1


[Site "https://www.chess.com"]